bitfinex/quotes_BTCUSD_20250410
["timestamp","ask_amount","ask_price","bid_price","bid_amount"]
[1744327795884,0.264538,79384.0,79379.0,0.13327115]
[1744327796385,0.012597,79380.0,79379.0,0.00636357]
[1744327796624,0.251951,79381.0,79376.0,0.434001]
[1744327796812,0.31434,79383.0,79379.0,0.00636357]
[1744327796952,0.31434,79383.0,79376.0,0.434001]
[1744327797159,0.31138876,79383.0,79377.0,0.00636357]
[1744327797388,0.251949,79381.0,79377.0,0.00636357]
[1744327797791,0.251955,79380.0,79377.0,0.00636357]
[1744327797993,0.264555,79379.0,79377.0,0.00636357]
[1744327798304,0.012597,79378.0,79377.0,0.00636357]
[1744327798808,0.264558,79378.0,79372.0,0.251977]
[1744327799110,0.264555,79378.0,79372.0,0.012598]
[1744327799471,0.251966,79376.0,79372.0,0.012598]
[1744327800434,0.251966,79376.0,79370.0,0.012599]
[1744327800641,0.264564,79376.0,79371.0,0.012599]
[1744327801938,0.012598,79376.0,79371.0,0.26458]
[1744327802269,0.012598,79377.0,79372.0,0.264573]
[1744327802622,0.264555,79378.0,79373.0,0.26457]
[1744327804236,0.062396,79389.0,79381.0,0.264544]
[1744327804469,0.012596,79386.0,79379.0,0.26455]
[1744327805052,0.251936,79385.0,79379.0,0.26455]
[1744327805262,0.062396,79389.0,79379.0,0.26455]
[1744327805263,0.0498,79389.0,79384.0,0.251939]
[1744327805467,0.0498,79389.0,79385.0,0.012596]
[1744327805669,0.0498,79389.0,79388.0,0.012596]
[1744327805877,0.012597,79383.0,79377.0,0.012598]
[1744327806095,0.012597,79383.0,79378.0,0.251958]
[1744327806304,0.251984,79370.0,79364.0,0.34]
[1744327806514,0.251984,79370.0,79364.0,0.3526]
[1744327806748,0.012599,79366.0,79365.0,0.0235571]
[1744327806878,0.0126,79359.0,79351.0,0.012602]
[1744327807088,0.0126,79359.0,79354.0,0.34]
[1744327807289,0.264619,79359.0,79354.0,0.34]
[1744327807689,0.264619,79359.0,79352.0,0.252038]
[1744327807889,0.264619,79359.0,79358.0,0.00061958]
[1744327808534,0.264586,79369.0,79359.0,0.0126]
[1744327808715,0.252,79365.0,79359.0,0.0126]
[1744327809048,0.0126,79362.0,79358.0,0.00061958]
[1744327811436,0.314381,79371.0,79360.0,0.0126]
[1744327811648,0.062399,79371.0,79365.0,0.0126]
[1744327811845,0.0498,79371.0,79365.0,0.0126]
[1744327812068,0.0498,79371.0,79366.0,0.251997]
[1744327812268,0.0498,79371.0,79366.0,0.264596]
[1744327812546,0.0498,79371.0,79366.0,0.012599]
[1744327812880,0.0498,79371.0,79366.0,0.264595]
[1744327813008,0.0498,79371.0,79364.0,0.264603]
[1744327813194,0.012599,79367.0,79362.0,0.02352275]
[1744327813465,0.0126,79364.0,79362.0,0.02352275]
[1744327813681,0.252006,79363.0,79362.0,0.02352275]
[1744327813842,0.252006,79363.0,79358.0,0.00061958]
[1744327813843,0.012599,79366.0,79359.0,0.0126]
[1744327814063,0.012599,79368.0,79361.0,0.252012]
[1744327814281,0.0498,79371.0,79365.0,0.264597]
[1744327814475,0.0453,79378.0,79373.0,0.012598]
[1744327815365,0.0483,79382.0,79377.0,0.012598]
[1744327815572,0.0483,79382.0,79378.0,0.251958]
[1744327816065,0.0483,79382.0,79379.0,0.251952]
[1744327816364,0.297234,79386.0,79381.0,0.251949]
[1744327817389,0.0469,79392.0,79389.0,0.251924]
[1744327817603,0.0469,79392.0,79390.0,0.251917]
[1744327817806,0.0469,79392.0,79389.0,0.251924]
[1744327818112,0.0469,79392.0,79391.0,0.00656626]
[1744327818360,0.0469,79392.0,79386.0,0.264528]
[1744327818361,0.251917,79391.0,79390.0,0.00647931]
[1744327818545,0.251924,79389.0,79383.0,0.012597]
[1744327818747,0.251924,79389.0,79384.0,0.251939]
[1744327819554,0.251936,79386.0,79382.0,0.00045168]
[1744327819857,0.264527,79387.0,79382.0,0.00045168]
[1744327821021,0.264532,79386.0,79382.0,0.00045168]
[1744327821227,0.26452,79389.0,79384.0,0.251939]
[1744327821429,0.251933,79387.0,79383.0,0.00632336]
[1744327821629,0.251933,79387.0,79382.0,0.25239468]
[1744327821803,0.251937,79385.0,79384.0,0.00632336]
[1744327822006,0.012596,79386.0,79382.0,0.00045168]
[1744327822485,0.012596,79386.0,79383.0,0.00632336]
[1744327822921,0.012596,79388.0,79383.0,0.01892036]
[1744327823772,0.012596,79384.0,79383.0,0.00632336]
[1744327824176,0.26454,79383.0,79382.0,0.00045168]
[1744327824393,0.31334,79383.0,79382.0,0.00045168]
[1744327824605,0.37478085,79383.0,79382.0,0.00045168]
[1744327824805,0.50168843,79383.0,79382.0,0.00045168]
[1744327826976,0.51332379,79383.0,79382.0,0.00045168]
[1744327828096,0.0126,79359.0,79358.0,0.0001679]
[1744327828308,0.360319,79359.0,79358.0,0.0001679]
[1744327829584,0.36077059,79359.0,79358.0,0.0001679]
[1744327831727,0.3702922,79359.0,79358.0,0.0001679]
[1744327832708,0.38483305,79359.0,79358.0,0.0001679]
[1744327834066,0.51174063,79359.0,79358.0,0.0001679]
[1744327835313,0.51174063,79359.0,79358.0,9e-07]
[1744327836347,0.264629,79356.0,79355.0,8e-07]
[1744327836545,0.45107743,79356.0,79355.0,8e-07]
[1744327836941,0.49917743,79356.0,79355.0,8e-07]
[1744327837141,0.012602,79350.0,79349.0,7e-07]
[1744327837390,0.012602,79350.0,79346.0,0.0001679]
[1744327837391,0.26659785,79347.0,79346.0,5e-07]
[1744327837529,0.49920743,79347.0,79346.0,5e-07]
[1744327841259,0.63160743,79347.0,79346.0,5e-07]
[1744327841460,0.49920743,79347.0,79346.0,5e-07]
[1744327850581,0.264659,79347.0,79346.0,5e-07]
[1744327850998,0.27919985,79347.0,79346.0,5e-07]
[1744327854468,0.264659,79347.0,79346.0,5e-07]
[1744327860318,0.264649,79350.0,79346.0,5e-07]
[1744327860475,0.264655,79349.0,79346.0,5e-07]
[1744327860675,0.264655,79349.0,79347.0,0.00714149]
[1744327862255,0.00045159,79359.0,79354.0,0.012601]
[1744327862459,0.01305159,79359.0,79355.0,0.252032]
[1744327862684,0.01305159,79359.0,79354.0,0.012601]
[1744327862832,0.01305159,79359.0,79356.0,0.00702896]
[1744327863055,0.00045159,79359.0,79354.0,0.012601]
[1744327863257,0.00045159,79359.0,79357.0,0.00702896]
[1744327863478,0.00045159,79359.0,79355.0,0.012601]
[1744327863782,0.00045159,79359.0,79358.0,0.00702896]
[1744327863933,0.00045159,79359.0,79355.0,0.264633]
[1744327864139,0.00045159,79359.0,79356.0,0.00702896]
[1744327864487,0.252025,79357.0,79356.0,0.00702896]
[1744327864887,0.264626,79357.0,79350.0,0.28816567]
[1744327865688,0.264626,79357.0,79351.0,0.01963096]
[1744327865857,0.264626,79357.0,79352.0,0.012602]
[1744327866074,0.012601,79357.0,79352.0,0.26464]
[1744327866485,0.012601,79357.0,79353.0,0.00702896]
[1744327870744,0.264636,79354.0,79353.0,0.00702896]
[1744327871310,0.252052,79349.0,79347.0,0.02350601]
[1744327871649,0.012602,79348.0,79347.0,0.02350601]
[1744327871851,0.252057,79347.0,79346.0,5e-07]
[1744327872199,0.264659,79347.0,79346.0,5e-07]
[1744327873371,0.012602,79347.0,79346.0,5e-07]
[1744327874088,0.012602,79348.0,79346.0,5e-07]
[1744327874723,0.252057,79347.0,79346.0,5e-07]
[1744327874877,0.264659,79347.0,79346.0,5e-07]
[1744327876861,0.264654,79349.0,79346.0,5e-07]
[1744327876862,0.0473,79352.0,79346.0,5e-07]
[1744327877067,0.264641,79353.0,79347.0,0.264659]
[1744327877302,0.264631,79356.0,79351.0,0.252042]
[1744327877479,0.264631,79356.0,79348.0,0.04307911]
[1744327877679,0.264626,79358.0,79352.0,0.252041]
[1744327877878,0.264629,79357.0,79351.0,0.012602]
[1744327878279,0.00045159,79359.0,79352.0,0.03047711]
[1744327878484,0.00045159,79359.0,79358.0,0.264623]
[1744327878827,0.00045159,79359.0,79357.0,0.012601]
[1744327878996,0.00045159,79359.0,79358.0,0.03047711]
[1744327879164,0.00045159,79359.0,79358.0,0.04307811]
[1744327879367,0.00045159,79359.0,79358.0,0.29510011]
[1744327879565,0.00045159,79359.0,79358.0,0.42200769]
[1744327879761,0.00045159,79359.0,79358.0,0.87459718]
[1744327885697,0.00045159,79359.0,79358.0,0.7476896]
[1744327886309,0.26507059,79359.0,79358.0,0.03047711]
[1744327886790,0.00045159,79359.0,79358.0,0.03047711]
[1744327887000,0.00045159,79359.0,79358.0,0.04307811]
[1744327887358,0.00045159,79359.0,79358.0,0.65870566]
[1744327887603,0.00045159,79359.0,79358.0,0.65618569]
[1744327888466,0.00045159,79359.0,79358.0,0.81294569]
[1744327888801,0.29753,79387.0,79381.0,0.251949]
[1744327888974,4.551e-05,79385.0,79383.0,0.251942]
[1744327889176,4.551e-05,79385.0,79384.0,0.012596]
[1744327889615,4.551e-05,79385.0,79384.0,0.61784266]
[1744327889808,4.551e-05,79385.0,79384.0,0.62203192]
[1744327890407,4.551e-05,79385.0,79384.0,0.95767492]
[1744327890798,4.551e-05,79385.0,79384.0,0.84210292]
[1744327890984,4.551e-05,79385.0,79384.0,0.74206192]
[1744327892320,4.551e-05,79385.0,79384.0,0.62203192]
[1744327893395,4.551e-05,79385.0,79384.0,1.03963192]
[1744327894760,0.00027853,79389.0,79388.0,0.704523]
[1744327894959,0.00027853,79389.0,79388.0,0.83143058]
[1744327895145,0.00027853,79389.0,79388.0,0.83749379]
[1744327895325,0.00027853,79389.0,79388.0,1.01767755]
[1744327896027,5.3e-07,79389.0,79388.0,1.01767755]
[1744327896574,5.3e-07,79389.0,79388.0,0.86099755]
[1744327896729,5.3e-07,79389.0,79388.0,1.01767755]
[1744327901508,0.00033653,79399.0,79398.0,0.264489]
[1744327902201,0.00033653,79399.0,79398.0,0.61056972]
[1744327903828,0.00033653,79399.0,79398.0,0.00608072]
[1744327904000,0.04973653,79399.0,79398.0,0.00608072]
[1744327904197,0.04973653,79399.0,79396.0,0.012595]
[1744327904442,0.04973653,79399.0,79398.0,0.00603177]
[1744327904644,0.04973653,79399.0,79396.0,0.012595]
[1744327904760,0.04973653,79399.0,79398.0,0.00603177]
[1744327905315,0.04973653,79399.0,79395.0,0.251902]
[1744327905499,0.04973653,79399.0,79398.0,0.00603177]
[1744327905694,0.04973653,79399.0,79390.0,0.34]
[1744327905695,0.012595,79396.0,79390.0,0.34]
[1744327905917,0.264509,79392.0,79391.0,0.00603177]
[1744327906444,0.012596,79384.0,79383.0,0.0001348]
[1744327906619,0.058396,79384.0,79383.0,0.0001348]
[1744327907282,0.058396,79384.0,79383.0,0.00641741]
[1744327907480,0.058396,79384.0,79383.0,0.0001348]
[1744327907683,0.058396,79384.0,79383.0,0.00641741]
[1744327909086,0.058396,79384.0,79383.0,0.0001348]
[1744327910126,0.058396,79384.0,79383.0,0.00646459]
[1744327910380,0.0458,79384.0,79383.0,0.0001348]
[1744327910578,0.0458,79384.0,79383.0,0.00647818]
[1744327910777,0.0458,79384.0,79383.0,0.2646748]
[1744327910996,0.0458,79384.0,79383.0,0.27101818]
[1744327911988,0.0458,79384.0,79383.0,0.00647818]
[1744327915275,0.0494,79397.0,79387.0,0.012596]
[1744327915505,0.00033653,79399.0,79398.0,0.264489]
[1744327915826,0.00033653,79399.0,79398.0,0.27068853]
[1744327916659,0.00033653,79399.0,79398.0,0.37068853]
[1744327917775,0.00033653,79399.0,79398.0,0.39415831]
[1744327920091,0.00033653,79399.0,79398.0,0.38156431]
[1744327920299,0.00033653,79399.0,79398.0,0.02966931]
[1744327920504,0.00033653,79399.0,79398.0,0.00619953]
[1744327920706,0.00033653,79399.0,79398.0,0.012594]
[1744327920903,0.00033653,79399.0,79398.0,0.37049416]
[1744327921117,0.00033653,79399.0,79398.0,0.39396394]
[1744327921315,0.00033653,79399.0,79398.0,0.86087152]
[1744327921860,0.00033653,79399.0,79398.0,1.01527152]
[1744327922584,0.00033653,79399.0,79398.0,0.86087152]
[1744327922827,0.00033653,79399.0,79398.0,1.01527152]
[1744327926213,0.00033653,79399.0,79398.0,1.11527152]
[1744327930650,0.00033653,79399.0,79398.0,1.53287152]
[1744327931781,0.000336,79414.0,79398.0,1.53287152]
[1744327931782,0.000336,79414.0,79407.0,0.804459]
[1744327931983,0.000336,79414.0,79407.0,1.43886058]
[1744327932185,0.000336,79414.0,79407.0,1.41106487]
[1744327932326,0.000336,79414.0,79407.0,1.43453465]
[1744327932532,0.000336,79414.0,79407.0,1.27327865]
[1744327933317,0.000336,79414.0,79407.0,0.96057765]
[1744327933738,0.264448,79411.0,79407.0,0.02921107]
[1744327934146,0.012928,79414.0,79407.0,0.01833429]
[1744327934722,0.251851,79412.0,79407.0,0.01833429]
[1744327936454,0.012928,79414.0,79407.0,0.01833429]
[1744327936860,0.000336,79414.0,79407.0,0.01833429]
[1744327937201,0.000336,79414.0,79407.0,0.14524187]
[1744327939671,0.25218,79414.0,79407.0,0.14524187]
[1744327939966,0.000336,79414.0,79407.0,0.14524187]
[1744327940172,0.25185,79413.0,79407.0,0.14524187]
[1744327940382,0.264454,79409.0,79407.0,0.00574129]
[1744327940553,0.012593,79409.0,79407.0,0.00574129]
[1744327940759,0.012593,79409.0,79404.0,0.012593]
[1744327940937,0.012593,79409.0,79407.0,0.00580415]
[1744327941136,0.012593,79409.0,79404.0,0.13950058]
[1744327941363,0.012593,79409.0,79407.0,0.00580415]
[1744327941583,0.012593,79409.0,79404.0,0.13950058]
[1744327941782,0.251855,79411.0,79407.0,0.00581415]
[1744327941985,0.012592,79412.0,79405.0,0.012593]
[1744327942189,0.012592,79412.0,79407.0,0.25768041]
[1744327942527,0.012592,79412.0,79407.0,0.00581441]
[1744327942701,0.264445,79412.0,79407.0,0.00581441]
[1744327943627,0.264445,79412.0,79407.0,0.02926878]
[1744327943834,0.3586922,79408.0,79407.0,0.02926878]
[1744327944043,0.50014063,79408.0,79407.0,0.02926878]
[1744327944236,0.012597,79381.0,79374.0,0.012598]
[1744327944467,0.012597,79381.0,79376.0,0.34]
[1744327944750,0.251933,79386.0,79376.0,0.34]
[1744327944751,0.312328,79387.0,79382.0,0.012597]
[1744327944968,0.0478,79387.0,79385.0,0.264532]
[1744327945251,0.0461,79392.0,79387.0,0.25193]
[1744327945447,0.31061,79392.0,79386.0,0.012596]
[1744327946207,0.012596,79390.0,79385.0,0.264532]
[1744327946649,0.251946,79382.0,79373.0,0.264572]
[1744327946794,0.012597,79382.0,79378.0,0.34]
[1744327946996,0.012597,79383.0,79378.0,0.352597]
[1744327947199,0.251946,79382.0,79378.0,0.34]
[1744327947598,0.012597,79382.0,79378.0,0.34]
[1744327947801,0.012597,79383.0,79378.0,0.352597]
[1744327948393,0.264543,79382.0,79376.0,0.352598]
[1744327948628,0.251966,79376.0,79375.0,0.34]
[1744327949023,0.012598,79376.0,79375.0,0.34]
[1744327949231,0.264545,79382.0,79375.0,0.34]
[1744327949840,0.264545,79382.0,79380.0,0.1]
[1744327950014,0.012596,79387.0,79378.0,0.012597]
[1744327950210,0.012596,79384.0,79375.0,0.604564]
[1744327950415,0.012597,79382.0,79376.0,0.012598]
[1744327950621,0.264566,79375.0,79374.0,0.0001348]
[1744327952072,0.0492,79376.0,79374.0,0.0001348]
[1744327952279,0.301137,79385.0,79379.0,0.251953]
[1744327952485,0.0492,79385.0,79381.0,0.012597]
[1744327952825,0.061796,79385.0,79380.0,0.012597]
[1744327953047,0.313735,79385.0,79380.0,0.012597]
[1744327953255,0.012596,79384.0,79375.0,0.12690758]
[1744327953408,0.012597,79379.0,79373.0,0.012598]
[1744327953610,0.012597,79379.0,79374.0,0.12704238]
[1744327953813,0.012597,79379.0,79374.0,0.13964038]
[1744327954556,0.012597,79381.0,79375.0,0.264566]
[1744327954717,0.012597,79383.0,79378.0,0.251958]
[1744327954911,0.251946,79382.0,79376.0,0.251962]
[1744327955120,0.264543,79382.0,79377.0,0.012598]
[1744327955431,0.0492,79385.0,79382.0,0.264543]
[1744327955634,0.0965,79395.0,79391.0,0.251914]
[1744327955835,0.0492,79395.0,79390.0,0.25192]
[1744327956704,0.0473,79401.0,79394.0,0.264503]
[1744327957061,0.059894,79401.0,79396.0,0.264495]
[1744327957462,0.264483,79400.0,79394.0,0.012595]
[1744327957685,0.012594,79400.0,79394.0,0.012595]
[1744327957910,0.251889,79400.0,79396.0,0.251901]
[1744327958146,0.264483,79400.0,79396.0,0.251901]
[1744327958580,0.264483,79400.0,79394.0,0.012595]
[1744327959010,0.012594,79401.0,79395.0,0.012595]
[1744327959252,0.0492,79405.0,79402.0,0.012594]
[1744327959491,0.0129292,79408.0,79405.0,0.251873]
[1744327959492,0.0003362,79408.0,79405.0,0.251873]
[1744327959737,0.0003362,79408.0,79407.0,0.012593]
[1744327960217,0.0003362,79408.0,79404.0,0.364466]
[1744327960861,0.0003362,79408.0,79405.0,0.012593]
[1744327962642,0.0003362,79408.0,79406.0,0.264463]
[1744327962858,0.0003362,79408.0,79407.0,0.13950058]
[1744327963069,0.0003362,79408.0,79407.0,0.14201908]
[1744327963243,0.0003362,79408.0,79407.0,0.13950058]
[1744327965433,0.0003362,79408.0,79407.0,0.13950058]
[1744327965694,0.0003362,79408.0,79402.0,0.012594]
[1744327965695,0.012593,79404.0,79393.0,0.1]
[1744327965924,0.012596,79387.0,79382.0,0.012597]
[1744327966152,0.012596,79388.0,79382.0,0.39145058]
[1744327966376,0.012596,79390.0,79384.0,0.012596]
[1744327966638,0.264485,79400.0,79392.0,0.012595]
[1744327966867,0.012596,79389.0,79383.0,0.264538]
[1744327967081,0.012596,79390.0,79384.0,0.012596]
[1744327967746,0.264518,79390.0,79384.0,0.264532]
[1744327967960,0.251928,79388.0,79383.0,0.012597]
[1744327968914,0.251911,79394.0,79386.0,0.012596]
[1744327968915,0.264506,79394.0,79386.0,0.012596]
[1744327969104,0.264506,79394.0,79386.0,0.112596]
[1744327969284,0.251898,79397.0,79392.0,0.012595]
[1744327969433,0.012595,79392.0,79387.0,0.12690758]
[1744327969778,0.264512,79391.0,79387.0,0.12690758]
[1744327970402,0.012595,79391.0,79387.0,0.12690758]
[1744327970609,0.012595,79392.0,79387.0,0.13950358]
[1744327971602,0.012595,79392.0,79387.0,0.39143058]
[1744327971806,0.264508,79393.0,79388.0,0.012596]
[1744327971978,0.264508,79393.0,79388.0,0.13950358]
[1744327972183,0.264508,79393.0,79388.0,0.12690758]
[1744327972384,0.012595,79392.0,79388.0,0.12690758]
[1744327972902,0.264512,79392.0,79388.0,0.12690758]
[1744327973105,0.012595,79391.0,79388.0,0.12690758]
[1744327973989,0.264515,79391.0,79388.0,0.12690758]
[1744327974366,0.264543,79383.0,79382.0,0.34]
[1744327974567,0.264543,79383.0,79380.0,0.0001348]
[1744327974767,0.264546,79381.0,79380.0,0.0001348]
[1744327978811,0.012596,79385.0,79380.0,0.0001348]
[1744327978812,0.313918,79390.0,79380.0,0.0001348]
[1744327979238,0.012596,79389.0,79380.0,0.2520868]
[1744327979438,0.012596,79385.0,79380.0,0.2520868]
[1744327980950,0.264532,79385.0,79380.0,0.2520868]
[1744327981144,0.251933,79387.0,79382.0,0.264541]
[1744327981357,0.0494,79390.0,79383.0,0.264537]
[1744327981652,0.0494,79390.0,79385.0,0.26453]
[1744327981865,0.0494,79401.0,79397.0,0.26449]
[1744327982104,0.012594,79400.0,79395.0,0.012595]
[1744327982324,0.264492,79398.0,79392.0,0.012595]
[1744327982531,0.251911,79393.0,79388.0,0.1]
[1744327982655,0.012595,79391.0,79389.0,0.12690758]
[1744327982904,0.012596,79389.0,79387.0,0.15312]
[1744327983149,0.012595,79391.0,79387.0,0.15312]
[1744327983379,0.264499,79396.0,79390.0,0.251917]
[1744327983615,0.264502,79395.0,79390.0,0.251917]
[1744327984240,0.264502,79395.0,79390.0,0.264513]
[1744327985428,0.264491,79398.0,79392.0,0.012595]
[1744327985842,0.012594,79397.0,79392.0,0.012595]
[1744327986124,0.0494,79401.0,79394.0,0.2645]
[1744327986304,0.0129292,79408.0,79402.0,0.012594]
[1744327986481,0.25187,79406.0,79400.0,0.012594]
[1744327987959,0.25187,79406.0,79401.0,0.251885]
[1744327988087,0.0003362,79408.0,79405.0,0.251872]
[1744327988291,0.0003362,79408.0,79404.0,0.264469]
[1744327988476,0.0003362,79408.0,79407.0,0.264459]
[1744327990667,0.0003362,79408.0,79405.0,0.251873]
[1744327991087,0.0003362,79408.0,79404.0,0.264469]
[1744327991088,0.0003362,79408.0,79403.0,0.251879]
[1744327991220,0.2647952,79408.0,79403.0,0.251879]
[1744327991608,0.0129292,79408.0,79403.0,0.264472]
[1744327992437,0.012593,79407.0,79402.0,0.012594]
[1744327992638,0.012593,79407.0,79402.0,0.264473]
[1744327992848,0.0129292,79408.0,79403.0,0.012593]
[1744327993064,0.264459,79407.0,79402.0,0.012594]
[1744327993271,0.0003362,79408.0,79404.0,0.012593]
[1744327993477,0.25187,79406.0,79401.0,0.012594]
[1744327993856,0.2647932,79408.0,79402.0,0.251882]
[1744327994200,0.2647932,79408.0,79402.0,0.264476]
[1744327995012,0.26313333,79407.0,79402.0,0.012594]
[1744327995444,0.26313333,79407.0,79401.0,0.012594]
[1744327995617,0.012593,79406.0,79401.0,0.012594]
[1744327998486,0.012593,79406.0,79402.0,0.251882]
[1744327999011,0.0129292,79408.0,79402.0,0.251882]
[1744327999445,0.0003362,79408.0,79407.0,0.012593]
[1744328000078,0.0003362,79408.0,79407.0,0.13950058]
[1744328001375,0.0003362,79408.0,79407.0,0.482019]
[1744328001600,0.0003362,79408.0,79407.0,0.47950058]
[1744328002490,0.0003362,79408.0,79407.0,0.63262058]
[1744328002940,0.0003362,79408.0,79407.0,0.47950058]
[1744328003198,0.0003362,79408.0,79407.0,0.49312]
[1744328003389,0.0129292,79408.0,79407.0,0.15312]
[1744328003521,0.0003362,79408.0,79407.0,0.012593]
[1744328003730,0.0003362,79408.0,79406.0,0.251869]
[1744328006377,0.0003362,79408.0,79407.0,0.012593]
[1744328006829,0.0003362,79408.0,79407.0,0.14201894]
[1744328009766,0.0003362,79408.0,79407.0,0.13950058]
[1744328010348,0.0003362,79408.0,79407.0,0.14201894]
[1744328011116,0.0003362,79408.0,79407.0,0.48201894]
[1744328011319,0.0003362,79408.0,79407.0,0.47950058]
[1744328012137,0.0003362,79408.0,79407.0,0.63146058]
[1744328021612,0.0003362,79408.0,79407.0,0.46690758]
[1744328022995,0.0003362,79408.0,79407.0,0.47950058]
[1744328027385,0.0003362,79408.0,79407.0,0.57950058]
[1744328027589,0.0003362,79408.0,79407.0,0.77922058]
[1744328027792,0.0003362,79408.0,79407.0,1.19682058]
[1744328028343,0.0003362,79408.0,79407.0,1.20635263]
[1744328029184,0.0003362,79408.0,79407.0,1.05443263]
[1744328029485,0.0003362,79408.0,79407.0,1.20635263]
[1744328030238,2e-07,79408.0,79407.0,2.51216463]
[1744328030443,2e-07,79408.0,79407.0,1.20635263]
[1744328030621,2e-07,79408.0,79407.0,2.50179263]
[1744328032726,2e-07,79408.0,79407.0,2.52133348]
[1744328034726,2e-07,79408.0,79407.0,2.62133348]
[1744328035131,2e-07,79431.0,79430.0,0.552589]
[1744328035337,4e-07,79433.0,79432.0,0.604376]
[1744328035558,4e-07,79433.0,79432.0,0.73128358]
[1744328035759,0.0001143,79433.0,79432.0,0.73128358]
[1744328036201,0.0001143,79433.0,79432.0,0.88316358]
[1744328040125,0.0001143,79433.0,79432.0,1.30076358]
[1744328041227,0.0001143,79433.0,79432.0,1.40076358]
[1744328041434,0.0001143,79433.0,79432.0,1.30076358]
[1744328048327,0.0494,79454.0,79432.0,1.30076358]
[1744328048328,1e-07,79437.0,79436.0,0.112588]
[1744328048524,9e-07,79438.0,79437.0,0.591771]
[1744328048734,9e-07,79438.0,79437.0,1.14886658]
[1744328049765,5e-07,79440.0,79439.0,0.704353]
[1744328049975,5e-07,79440.0,79439.0,0.83126058]
[1744328050381,0.0001678,79463.0,79458.0,0.80429]
[1744328050592,0.00245177,79459.0,79458.0,1.08235758]
[1744328051168,0.00245177,79459.0,79458.0,1.49995758]
[1744328052696,0.00245177,79459.0,79458.0,1.51248264]
[1744328052899,0.00245177,79459.0,79458.0,1.41248264]
[1744328053085,0.00245177,79459.0,79458.0,0.98235758]
[1744328053279,0.00245177,79459.0,79458.0,0.73119758]
[1744328056542,0.05195177,79459.0,79458.0,0.73119758]
[1744328056750,0.00245177,79459.0,79458.0,0.88231758]
[1744328058130,0.00245177,79459.0,79458.0,1.08231758]
[1744328062188,0.00245177,79459.0,79458.0,1.49991758]
[1744328064592,5.7e-07,79463.0,79462.0,0.604276]
[1744328064828,2e-08,79463.0,79462.0,0.73118358]
[1744328065052,8.2e-07,79465.0,79464.0,0.60427]
[1744328065227,8.2e-07,79465.0,79464.0,0.73117758]
[1744328067019,0.03993642,79489.0,79488.0,0.01258]
[1744328067220,0.04007185,79489.0,79488.0,0.13948758]
[1744328067802,0.04007185,79489.0,79488.0,0.15189494]
[1744328068357,0.00013543,79489.0,79488.0,0.49189494]
[1744328068781,0.00013543,79489.0,79488.0,0.90949494]
[1744328074641,0.0477,79503.0,79488.0,0.90949494]
[1744328074642,0.03817103,79503.0,79502.0,0.264143]
[1744328074839,0.03817103,79503.0,79502.0,0.39105058]
[1744328075304,0.03817103,79503.0,79502.0,0.12690758]
[1744328075483,0.012578,79501.0,79494.0,0.264167]
[1744328075659,0.251592,79494.0,79492.0,0.34]
[1744328075845,0.264171,79494.0,79492.0,0.46690758]
[1744328076048,0.012579,79495.0,79492.0,0.46690758]
[1744328076411,0.012579,79496.0,79492.0,0.46690758]
[1744328076761,0.0484,79499.0,79493.0,0.264173]
[1744328076987,0.0484,79499.0,79494.0,0.012579]
[1744328078333,0.0484,79499.0,79494.0,0.264167]
[1744328079601,0.0484,79499.0,79496.0,0.251584]
[1744328079799,0.0484,79499.0,79495.0,0.13948658]
[1744328080440,0.0484,79499.0,79495.0,0.39107158]
[1744328081199,0.0484,79499.0,79497.0,0.251581]
[1744328081482,0.0484,79499.0,79497.0,0.26416]
[1744328082096,0.0484,79499.0,79496.0,0.012579]
[1744328084912,0.0484,79499.0,79496.0,0.264161]
[1744328086461,0.0484,79499.0,79496.0,0.012579]
[1744328086876,0.0484,79499.0,79496.0,0.264161]
[1744328087179,0.0484,79499.0,79496.0,0.012579]
[1744328090077,0.251584,79496.0,79491.0,0.34]
[1744328090303,0.012579,79495.0,79493.0,0.34]
[1744328090643,0.012579,79497.0,79492.0,0.12690758]
[1744328092003,0.012579,79497.0,79492.0,0.13948658]
[1744328093032,0.012579,79497.0,79492.0,0.39108058]
[1744328094652,0.264159,79498.0,79493.0,0.012579]
[1744328094856,0.0484,79499.0,79494.0,0.012579]
[1744328096036,0.0484,79499.0,79494.0,0.264167]
[1744328096534,0.01258,79490.0,79484.0,0.012581]
[1744328096731,0.01258,79486.0,79484.0,0.00013543]
[1744328099538,0.313499,79485.0,79484.0,0.00013543]
[1744328101299,0.313499,79485.0,79484.0,0.26433843]
[1744328101300,0.0493,79485.0,79484.0,0.26433843]
[1744328101797,0.0469,79489.0,79488.0,0.26419]
[1744328102794,0.29851,79489.0,79484.0,0.01271643]
[1744328102966,0.01258,79488.0,79484.0,0.00013543]
[1744328103175,0.264199,79485.0,79484.0,0.00013543]
[1744328103379,0.360399,79485.0,79484.0,0.00013543]
[1744328106340,0.0962,79485.0,79484.0,0.00013543]
[1744328106542,0.0469,79485.0,79484.0,0.01271643]
[1744328106743,0.0469,79485.0,79484.0,0.00013543]
[1744328106917,0.05948,79485.0,79484.0,0.00013543]
[1744328107121,0.360399,79485.0,79484.0,0.00013543]
[1744328107974,0.37493985,79485.0,79484.0,0.00013543]
[1744328108168,0.37479175,79485.0,79484.0,0.00013543]
[1744328112916,0.3602509,79485.0,79484.0,0.00013543]
[1744328114308,0.37479175,79485.0,79484.0,0.00013543]
[1744328115744,0.50169933,79485.0,79484.0,0.00013543]
[1744328120111,0.52502863,79485.0,79484.0,0.00013543]
[1744328121326,0.3602509,79485.0,79484.0,0.00013543]
[1744328122121,0.3109509,79485.0,79484.0,0.00013543]
[1744328122443,0.0472,79492.0,79488.0,0.01258]
[1744328122641,0.059779,79492.0,79485.0,0.264199]
[1744328122844,0.01258,79491.0,79484.0,0.00013543]
[1744328123083,0.01258,79487.0,79484.0,0.00013543]
[1744328123686,0.264194,79487.0,79484.0,0.00013543]
[1744328124491,0.01258,79487.0,79484.0,0.00013543]
[1744328125319,0.264194,79487.0,79484.0,0.00013543]
[1744328126259,0.264183,79491.0,79484.0,0.25175743]
[1744328126436,0.057978,79501.0,79495.0,0.251585]
[1744328126611,0.264148,79501.0,79495.0,0.012579]